bitfinex-derivatives/quotes_SOLF0:USTF0_20251006
["timestamp","ask_amount","ask_price","bid_price","bid_amount"]
[1759713417714,8.07,228.71,228.56,61.2327]
[1759713417919,3.06363637,228.72,228.56,61.2327]
[1759713418118,8.07,228.71,228.56,61.2327]
[1759713418620,8.07,228.7,228.59,61.2265]
[1759713419022,8.07,228.74,228.61,61.2206]
[1759713419623,8.07,228.74,228.62,3.9353]
[1759713420520,8.07,228.74,228.62,74.65088143]
[1759713420722,8.07,228.74,228.62,13.43308143]
[1759713420924,8.07,228.74,228.58,61.2274]
[1759713421226,8.07,228.74,228.63,61.2155]
[1759713421826,8.07,228.74,228.64,3.935]
[1759713422918,8.07,228.74,228.66,3.9347]
[1759713423121,8.07,228.74,228.65,1.27219168]
[1759713424025,1.27219168,228.73,228.62,13.0056424]
[1759713424227,8.07,228.69,228.58,1.27219168]
[1759713424926,1.27219168,228.67,228.56,30.66]
[1759713425627,8.07,228.66,228.56,30.66]
[1759713426223,8.07,228.74,228.58,61.2292]
[1759713426423,8.07,228.71,228.61,1.27219168]
[1759713427324,8.07,228.71,228.63,3.9351]
[1759713427530,8.07,228.65,228.56,13.36182149]
[1759713427828,1.27219168,228.63,228.52,318.4]
[1759713428028,1.27219168,228.63,228.52,425.76]
[1759713428228,8.07,228.62,228.52,425.76]
[1759713428630,8.07,228.62,228.55,3.9366]
[1759713428932,1.27219168,228.63,228.55,16.83058713]
[1759713429129,8.07,228.66,228.55,16.83058713]
[1759713429830,8.07,228.66,228.55,12.89398713]
[1759713430025,8.07,228.66,228.53,61.2426]
[1759713430225,8.07,228.66,228.58,3.936]
[1759713431231,11.13122531,228.71,228.57,61.2305]
[1759713431432,8.07,228.7,228.57,61.2305]
[1759713431730,8.07,228.7,228.61,3.9356]
[1759713434034,8.07,228.7,228.63,0.02780194]
[1759713435034,8.07,228.7,228.63,3.96300194]
[1759713438626,7.57,228.75,228.67,3.9345]
[1759713438830,7.57,228.75,228.63,61.24240194]
[1759713439031,7.57,228.75,228.63,0.02780194]
[1759713439230,3.06122531,228.7,228.55,13.11327207]
[1759713439525,7.57,228.69,228.54,61.2385]
[1759713439731,7.57,228.69,228.56,61.2346]
[1759713439931,7.57,228.69,228.58,61.2288]
[1759713440136,7.28082535,228.78,228.58,61.2288]
[1759713440328,7.57,228.77,228.59,61.2259]
[1759713440536,7.28082535,228.78,228.59,61.2259]
[1759713440830,7.57,228.76,228.65,3.9349]
[1759713441936,7.57,228.74,228.65,3.9349]
[1759713444633,7.57,228.74,228.67,3.9345]
[1759713444833,7.28082535,228.78,228.61,61.2201]
[1759713445538,7.57,228.76,228.62,61.2185]
[1759713445837,7.57,228.76,228.63,61.2143]
[1759713446336,7.57,228.76,228.66,3.9347]
[1759713446833,7.57,228.76,228.63,61.2143]
[1759713448737,7.57,228.76,228.67,3.9344]
[1759713449439,7.57,228.76,228.64,61.212]
[1759713450536,7.57,228.76,228.69,3.9341]
[1759713450738,4.21960004,228.78,228.6,25.24]
[1759713450930,7.57,228.74,228.6,25.24]
[1759713451134,1.27350444,228.61,228.55,3.9366]
[1759713451534,1.27350444,228.61,228.52,425.7]
[1759713451740,1.27350444,228.61,228.57,3.9361]
[1759713452630,1.27350444,228.66,228.59,3.9358]
[1759713452834,1.27350444,228.66,228.54,1.27350444]
[1759713452835,8.84350444,228.66,228.54,14.61445508]
[1759713453040,1.27350444,228.63,228.54,1.27350444]
[1759713453642,1.27350444,228.63,228.54,108.57350444]
[1759713454545,1.27350444,228.63,228.58,3.936]
[1759713454939,9.08350444,228.63,228.54,121.96167968]
[1759713455438,9.08350444,228.63,228.58,3.936]
[1759713456336,7.81,228.63,228.58,3.936]
[1759713456537,9.08350444,228.69,228.6,1.27350444]
[1759713456742,1.27350444,228.72,228.61,168.4808]
[1759713456938,1.27350444,228.72,228.61,107.26]
[1759713458745,1.27350444,228.72,228.65,3.9348]
[1759713459339,9.08350444,228.73,228.67,3.9345]
[1759713459539,9.08350444,228.73,228.61,168.4793]
[1759713460239,9.08350444,228.73,228.66,3.9346]
[1759713460646,9.08350444,228.73,228.68,3.9343]
[1759713460845,80.10773466,228.93,228.66,1.27350444]
[1759713460846,1.27350444,228.76,228.66,1.27350444]
[1759713461643,1.27350444,228.76,228.7,3.9339]
[1759713462040,9.08350444,228.77,228.66,1.27350444]
[1759713462341,9.08350444,228.8,228.72,3.9337]
[1759713462542,9.08350444,228.8,228.69,1.27350444]
[1759713463646,1.27350444,228.8,228.73,3.9334]
[1759713463836,12.02960004,228.78,228.73,3.9334]
[1759713465546,12.02960004,228.78,228.71,3.9339]
[1759713467043,12.02960004,228.78,228.66,4.86461177]
[1759713467044,7.81,228.76,228.67,1.27350444]
[1759713467250,7.81,228.76,228.65,87.34]
[1759713467449,1.27350444,228.74,228.65,87.34]
[1759713468148,1.27350444,228.74,228.66,3.9346]
[1759713469041,7.81,228.76,228.66,3.9346]
[1759713472450,7.81,228.76,228.67,3.9344]
[1759713473453,7.81,228.76,228.64,107.2]
[1759713474254,7.81,228.76,228.64,112.06461177]
[1759713474556,7.81,228.76,228.69,3.9341]
[1759713476054,7.81,228.76,228.71,3.9338]
[1759713476449,8.04,228.77,228.71,3.9338]
[1759713476755,8.04,228.77,228.69,3.9342]
[1759713479659,1.98803416,228.74,228.63,4.86461177]
[1759713479860,1.98803416,228.74,228.61,77.08461177]
[1759713480262,8.04,228.73,228.62,3.9354]
[1759713480658,8.04,228.73,228.61,77.08461177]
[1759713481455,8.04,228.73,228.66,3.9347]
[1759713481660,8.04,228.73,228.62,4.86461177]
[1759713482551,8.04,228.73,228.67,3.9344]
[1759713483057,8.04,228.77,228.66,61.2078]
[1759713483461,8.04,228.77,228.71,3.9337]
[1759713484754,8.04,228.77,228.68,3.9344]
[1759713486052,8.04,228.77,228.69,3.9341]
[1759713486261,8.04,228.77,228.66,61.82]
[1759713487060,8.04,228.77,228.68,61.2023]
[1759713487262,8.04,228.83,228.69,1.98803416]
[1759713487453,8.04,228.83,228.71,61.1927]
[1759713487657,8.04,228.83,228.77,3.9328]
[1759713487856,8.04,228.83,228.72,61.1916]
[1759713487857,8.04,228.83,228.73,61.1881]
[1759713488054,8.04,228.83,228.7,4.86461177]
[1759713488452,8.04,228.83,228.69,94.53264593]
[1759713488658,1.98803416,228.8,228.68,112.04461177]
[1759713488858,8.04,228.79,228.68,107.18]
[1759713489163,1.98803416,228.8,228.68,107.18]
[1759713489461,8.04,228.79,228.68,107.18]
[1759713490866,8.04,228.79,228.66,4.86461177]
[1759713491067,8.04,228.79,228.66,108.76461177]
[1759713491468,8.04,228.79,228.66,4.86461177]
[1759713491667,8.04,228.79,228.7,3.9339]
[1759713492168,8.04,228.79,228.66,4.86461177]
[1759713492472,8.04,228.79,228.67,107.16]
[1759713492963,8.04,228.79,228.69,61.1997]
[1759713493169,8.04,228.83,228.69,61.1997]
[1759713493669,8.04,228.83,228.69,66.06431177]
[1759713493963,8.04,228.83,228.72,61.1912]
[1759713494167,8.04,228.83,228.73,61.1878]
[1759713494468,8.04,228.83,228.74,107.16]
[1759713495066,8.04,228.83,228.78,3.9326]
[1759713495669,10.02803416,228.88,228.78,3.9326]
[1759713496666,8.04,228.88,228.74,109.14803416]
[1759713496871,8.04,228.88,228.81,0.0278194]
[1759713498566,8.04,228.88,228.81,13.22038068]
[1759713498763,7.85,228.92,228.81,13.22038068]
[1759713498966,7.85,228.92,228.81,110.70038068]
[1759713499170,7.85,228.92,228.85,3.9314]
[1759713500071,1.98803416,228.96,228.87,3.9311]
[1759713500272,9.83803416,228.96,228.87,3.9311]
[1759713501163,7.85,228.96,228.87,3.9311]
[1759713501972,7.85,228.99,228.89,3.9307]
[1759713502274,7.85,228.99,228.89,0.02807129]
[1759713502574,7.85,228.99,228.9,3.9306]
[1759713504273,7.85,228.99,228.89,168.29337129]
[1759713504476,7.85,228.99,228.89,107.14807129]
[1759713505373,7.85,228.99,228.93,3.93]
[1759713505578,7.85,228.99,228.89,107.14807129]
[1759713505970,7.85,228.99,228.89,107.12]
[1759713506776,7.85,228.99,228.9,3.9305]
[1759713508274,7.85,228.99,228.87,3.931]
[1759713508478,7.85,229.01,228.88,107.1]
[1759713508670,1.98803416,228.99,228.88,107.1]
[1759713508871,7.85,228.98,228.89,3.9308]
[1759713509279,7.85,228.98,228.88,107.1]
[1759713509674,7.85,228.98,228.91,3.9304]
[1759713509867,7.85,229.02,228.91,3.9304]
[1759713510074,7.85,229.02,228.89,61.1457]
[1759713510380,7.85,229.02,228.95,3.9297]
[1759713510967,20.64,229.05,228.97,3.9294]
[1759713512080,7.85,229.06,228.97,3.9294]
[1759713512475,7.85,229.06,228.91,1.98803416]
[1759713513581,7.85,229.06,228.95,3.9298]
[1759713514481,1.98803416,229.07,228.95,3.9298]
[1759713514680,1.98803416,229.15,228.98,61.1222]
[1759713514879,7.92,229.14,228.98,61.1222]
[1759713515084,7.92,229.14,228.98,1.98803416]
[1759713515277,7.92,229.14,228.99,3.9289]
[1759713515779,11.8467,229.14,229.01,3.9287]
[1759713516283,7.92,229.14,229.01,3.9287]
[1759713517780,1.98803416,229.15,229.01,3.9287]
[1759713517781,7.92,229.12,229.01,3.9287]
[1759713521477,9.90803416,229.12,229.01,3.9287]
[1759713524682,7.92,229.1,228.98,3.9291]
[1759713525282,7.92,229.1,228.99,3.9289]
[1759713527987,7.92,229.1,229.0,3.9288]
[1759713528278,7.92,229.1,229.02,3.9285]
[1759713528586,7.92,229.1,228.98,1.98803416]
[1759713528882,7.92,229.1,229.03,3.9282]
[1759713529287,1.26805351,229.13,229.02,1.26805351]
[1759713529488,8.65805351,229.14,229.05,3.928]
[1759713529782,8.65805351,229.14,229.02,1.26805351]
[1759713530187,7.39,229.14,229.06,3.9277]
[1759713531391,7.39,229.14,229.07,3.9275]
[1759713531587,7.39,229.14,229.07,17.12079527]
[1759713532087,7.39,229.14,229.08,3.9274]
[1759713533189,7.39,229.14,229.06,3.9278]
[1759713535387,7.39,229.14,229.06,17.194996]
[1759713535588,1.26805351,229.15,229.06,13.267196]
[1759713535888,7.39,229.14,229.04,3.9282]
[1759713536190,7.39,229.14,229.03,1.26805351]
[1759713537688,7.39,229.14,229.06,1.26805351]
[1759713538080,7.39,229.14,229.07,3.9276]
[1759713540791,7.39,229.14,229.06,13.2927784]
[1759713540987,7.39,229.14,229.05,1.26805351]
[1759713541490,7.39,229.14,229.08,1.26805351]
[1759713541994,7.39,229.18,229.09,3.9273]
[1759713543490,7.39,229.18,229.1,3.927]
[1759713544093,7.39,229.18,229.11,3.9269]
[1759713544590,7.39,229.18,229.09,3.9273]
[1759713544790,7.39,229.18,229.08,1.26805351]
[1759713545994,7.39,229.18,229.09,3.9272]
[1759713546393,1.26805351,229.16,229.06,13.0238672]
[1759713546595,7.39,229.15,229.04,49.6082]
[1759713546793,7.39,229.15,229.04,45.68]
[1759713548195,7.39,229.15,229.05,1.26805351]
[1759713548395,7.39,229.15,229.05,62.37025351]
[1759713548895,7.39,229.15,229.05,75.6668108]
[1759713549701,8.65805351,229.16,229.1,3.927]
[1759713549997,7.39,229.16,229.06,61.0999]
[1759713550901,7.39,229.18,229.11,3.9269]
[1759713552693,7.39,229.18,229.12,3.9267]
[1759713552903,7.39,229.18,229.11,1.26805351]
[1759713554204,7.39,229.23,229.14,1.26805351]
[1759713555304,7.39,229.23,229.14,3.9263]
[1759713556500,7.39,229.2,229.12,3.9268]
[1759713556705,1.26805351,229.18,229.12,3.9268]
[1759713556903,8.65805351,229.18,229.12,3.9268]
[1759713557806,8.65805351,229.18,229.13,3.9265]
[1759713558006,8.05,229.21,229.12,62.35195351]
[1759713558397,8.05,229.23,229.19,3.9256]
[1759713558595,8.05,229.27,229.19,3.9256]
[1759713559199,8.05,229.27,229.2,3.9253]
[1759713560000,8.05,229.27,229.21,3.9252]
[1759713560805,8.05,229.27,229.16,61.0738]
[1759713561403,8.05,229.27,229.18,1.26805351]
[1759713561599,8.05,229.27,229.21,3.9253]
[1759713561995,8.05,229.27,229.18,1.26805351]
[1759713562306,8.05,229.27,229.19,3.9255]
[1759713562806,8.05,229.27,229.19,5.19355351]
[1759713563204,8.05,229.27,229.19,1.26805351]
[1759713563507,8.05,229.27,229.17,1.26805351]
[1759713564099,8.05,229.27,229.2,1.26805351]
[1759713564308,8.05,229.27,229.23,3.925]
[1759713564711,9.31805351,229.31,229.23,3.925]
[1759713564909,9.31805351,229.31,229.2,1.26805351]
[1759713565508,8.05,229.31,229.2,1.26805351]
[1759713565702,8.05,229.31,229.25,3.9246]
[1759713566105,8.05,229.31,229.23,1.26805351]
[1759713566404,8.05,229.31,229.26,3.9243]
[1759713566804,8.05,229.31,229.27,3.9241]
[1759713567712,8.05,229.31,229.24,3.9247]
[1759713571023,8.05,229.34,229.26,3.9244]
[1759713573613,3.9228,229.36,229.24,104.86]
[1759713573815,1.26805351,229.32,229.22,3.9251]
[1759713574120,7.94,229.31,229.23,106.9]
[1759713574723,7.94,229.31,229.24,1.26805351]
[1759713578522,7.94,229.31,229.24,3.9246]
[1759713580927,7.94,229.31,229.25,3.9245]
[1759713581228,7.94,229.31,229.23,108.16805351]
[1759713582723,7.94,229.31,229.27,3.9242]
[1759713583930,7.94,229.35,229.25,3.9246]
[1759713584319,1.26805351,229.36,229.23,108.16805351]
[1759713584524,7.94,229.35,229.23,108.16805351]
[1759713585028,7.94,229.35,229.28,3.924]
[1759713585328,1.26805351,229.36,229.29,106.86]
[1759713585522,7.94,229.35,229.29,106.86]
[1759713586629,7.94,229.35,229.28,3.9239]
[1759713586829,7.94,229.35,229.29,106.86]
[1759713589632,9.25805351,229.36,229.3,3.9238]
[1759713590732,9.25805351,229.36,229.29,106.86]
[1759713590934,7.99,229.35,229.29,106.86]
[1759713592333,7.99,229.35,229.29,110.7839]
[1759713592934,7.99,229.35,229.29,106.86]
[1759713595134,7.99,229.34,229.2,34.80676799]
[1759713595437,1.97711073,229.35,229.24,106.84]
[1759713596635,5.90001073,229.35,229.24,110.7648]
[1759713597744,1.97711073,229.31,229.18,4.86461177]
[1759713597932,7.99,229.3,229.19,33.22]
[1759713599644,1.97711073,229.31,229.19,33.22]
[1759713599839,7.99,229.3,229.19,33.22]
[1759713600444,1.97711073,229.31,229.19,33.22]
[1759713600638,1.97711073,229.31,229.19,37.1455]
[1759713600845,7.99,229.3,229.19,37.1455]
[1759713601139,7.99,229.29,229.19,33.22]
[1759713601741,3.9239,229.3,229.18,59.9]
[1759713601940,7.99,229.29,229.18,59.9]
[1759713602535,7.99,229.33,229.2,65.92711177]
[1759713602736,7.99,229.33,229.21,4.86461177]
[1759713602941,7.99,229.33,229.25,3.9245]
[1759713603135,7.99,229.33,229.25,106.82]
[1759713604245,7.99,229.33,229.25,110.7445]
[1759713607348,7.99,229.38,229.25,106.82]
[1759713607549,7.99,229.38,229.25,111.68461177]
[1759713607849,7.99,229.38,229.26,4.86461177]
[1759713608449,7.99,229.38,229.26,8.78891177]
[1759713608751,7.99,229.38,229.26,4.86461177]
[1759713609552,7.99,229.38,229.3,3.9236]
[1759713611847,7.99,229.38,229.28,4.86461177]
[1759713612357,7.99,229.42,229.3,4.86461177]
[1759713613447,7.99,229.42,229.34,3.923]
[1759713614344,7.99,229.42,229.33,81.9]
[1759713614546,7.99,229.42,229.36,3.9227]
[1759713616147,7.99,229.42,229.38,3.9224]
[1759713616550,1.97711073,229.48,229.38,3.9224]
[1759713616746,7.99,229.46,229.4,3.922]
[1759713616953,7.99,229.46,229.37,61.0183]
[1759713617650,7.99,229.46,229.4,3.9219]
[1759713618753,7.99,229.46,229.36,12.8605904]
[1759713618958,7.99,229.46,229.33,88.7417225]
[1759713620262,7.99,229.46,229.33,83.87711073]
[1759713620461,7.99,229.46,229.34,106.78]
[1759713620662,7.99,229.46,229.37,3.9224]
[1759713620960,7.99,229.46,229.35,61.0235]
[1759713621358,7.99,229.46,229.4,3.9219]
[1759713622962,7.99,229.46,229.37,3.9225]
[1759713623564,7.99,229.46,229.38,3.9222]
[1759713623761,7.99,229.46,229.35,61.0215]
[1759713625664,7.99,229.46,229.4,3.922]
[1759713626265,7.99,229.46,229.36,13.13379598]
[1759713626266,7.99,229.46,229.41,3.9217]
[1759713626662,7.99,229.46,229.41,110.6617]
[1759713626863,7.69,229.51,229.41,106.74]
[1759713627567,7.69,229.51,229.41,167.7464]
[1759713628164,7.69,229.51,229.47,3.9208]
[1759713628662,7.69,229.55,229.36,12.76649548]
[1759713628962,7.69,229.51,229.37,26.32]
[1759713629167,7.69,229.51,229.37,87.3375]
[1759713629462,7.69,229.51,229.41,3.9217]
[1759713630073,256.7473181,229.7,229.41,3.9217]
[1759713630074,7.69,229.7,229.53,60.975]
[1759713630267,1.97711073,229.72,229.56,60.9666]
[1759713630570,7.69,229.74,229.59,3.9187]
[1759713630972,1.97711073,229.71,229.59,3.6145055]
[1759713631174,7.69,229.79,229.55,3.6145055]
[1759713631377,7.69,229.69,229.56,115.1372261]
[1759713631677,1.97711073,229.7,229.57,4.2027206]
[1759713631880,15.28,229.76,229.58,4.2027206]
[1759713632078,1.97711073,229.73,229.59,4.2027206]
[1759713632277,15.28,229.76,229.59,60.9598]
[1759713632481,1.97711073,229.75,229.6,60.9568]
[1759713632675,1.97711073,229.75,229.63,3.9181]
[1759713633679,7.56,229.74,229.63,3.9181]
[1759713633882,15.28,229.76,229.63,60.9485]
[1759713634082,7.56,229.74,229.63,60.9485]
[1759713634279,7.56,229.74,229.64,60.9458]
[1759713634481,7.56,229.74,229.67,3.9174]
[1759713634877,7.56,229.74,229.68,3.86742688]
[1759713635077,7.56,229.76,229.69,3.86742688]
[1759713635280,7.56,229.76,229.7,3.86742688]
[1759713635480,7.56,229.76,229.71,3.86742688]
[1759713635481,1.97711073,229.76,229.71,3.86742688]
[1759713635682,7.56,229.75,229.72,3.86742688]
[1759713635979,7.56,229.75,229.73,3.86742688]
[1759713636183,7.56,229.75,229.74,3.86742688]
[1759713637373,7.56,229.85,229.75,60.9158]
[1759713637679,7.56,229.85,229.76,3.86742688]
[1759713637882,7.56,229.85,229.77,3.86742688]
[1759713638079,7.56,229.85,229.79,3.9153]
[1759713638274,7.56,229.85,229.8,3.86742688]
[1759713638474,7.56,229.85,229.81,3.86742688]
[1759713638674,7.56,229.85,229.82,3.86742688]
[1759713638872,7.56,229.85,229.79,3.9153]
[1759713638873,7.56,229.85,229.83,3.86742688]
[1759713639073,7.56,229.85,229.84,3.86742688]
[1759713639278,7.56,229.91,229.84,3.86742688]
[1759713639478,7.56,229.91,229.85,3.86742688]
[1759713639681,7.56,229.92,229.86,3.86742688]
[1759713639882,1.97711073,229.93,229.87,3.86742688]
[1759713640080,7.56,229.92,229.88,3.86742688]
[1759713640283,7.56,229.88,229.76,10.3]
[1759713640483,7.56,229.88,229.77,3.83286546]
[1759713640683,7.56,229.88,229.78,3.83286546]
[1759713640878,7.56,229.88,229.79,3.83286546]
[1759713641075,7.56,229.88,229.8,3.83286546]
[1759713641275,7.56,229.88,229.81,3.83286546]
[1759713641482,7.56,230.06,229.82,3.83286546]
[1759713641680,7.56,229.98,229.84,60.8935]
[1759713641880,7.56,229.98,229.85,3.83286546]
[1759713642172,7.56,229.98,229.86,3.83286546]
[1759713642385,7.56,229.98,229.87,78.13286546]
[1759713642583,7.56,229.98,229.88,3.83286546]
[1759713642781,7.56,229.98,229.89,3.83286546]
[1759713642988,7.56,229.94,229.9,3.83286546]
[1759713643285,1.97711073,229.95,229.91,0.00286546]
[1759713643480,1.97711073,229.95,229.78,10.36]
[1759713643684,1.97711073,229.91,229.75,3.916]
[1759713643888,7.56,229.92,229.76,37.7]
[1759713644179,7.56,229.92,229.77,60.9118]
[1759713644986,7.56,229.92,229.79,3.9153]
[1759713645386,7.56,229.92,229.76,37.7]
[1759713645590,1.97711073,229.91,229.78,3.9155]
[1759713645981,1.97711073,229.91,229.73,60.9221]
[1759713646187,7.56,229.86,229.71,34.80894246]
[1759713646383,7.56,229.86,229.72,87.04]
[1759713646581,7.56,229.91,229.69,60.9318]
[1759713646788,7.56,229.91,229.75,60.9175]
[1759713646993,7.56,229.91,229.76,60.913]
[1759713647183,5.06014148,230.0,229.8,60.9039]
[1759713647384,7.56,229.99,229.82,60.8978]
[1759713647585,7.56,229.99,229.83,60.8962]
[1759713648088,316.78,230.04,229.8,60.9036]
[1759713648389,316.78,230.04,229.84,90.4]
[1759713648790,11.8716,230.02,229.85,3.9144]
[1759713648984,11.8716,230.02,229.8,60.9036]
[1759713649185,3.9116,230.02,229.81,108.74]
[1759713649380,5.06014148,230.0,229.72,60.9249]
[1759713649586,5.06014148,229.95,229.75,98.44]
[1759713649881,7.96,229.94,229.75,98.44]
[1759713650084,113.90014148,229.95,229.75,98.44]
[1759713650281,7.96,229.94,229.78,3.9155]
[1759713650485,117.81284148,229.95,229.7,60.929]
[1759713650486,5.06014148,229.91,229.7,60.929]
[1759713650785,7.96,229.9,229.74,3.9162]
[1759713650990,7.96,229.9,229.74,60.9199]
[1759713651386,7.96,229.97,229.85,60.8898]
[1759713651690,7.96,230.05,229.89,60.88]
[1759713652093,7.96,230.05,229.93,3.9129]
[1759713653497,7.96,230.05,229.95,3.9126]
[1759713654298,7.96,230.05,229.92,3.9131]
[1759713654598,10.9849728,230.04,229.8,60.9018]
[1759713654898,3.0249728,230.04,229.83,63.48]
[1759713655096,7.96,230.02,229.89,3.9136]
[1759713655295,7.96,230.02,229.9,3.71806655]
[1759713655495,7.96,230.02,229.91,3.71806655]
[1759713655801,7.96,230.0,229.92,3.71806655]
[1759713656094,7.96,230.0,229.8,60.9018]
[1759713656095,10.9849728,230.0,229.93,3.71806655]
[1759713656289,7.96,229.96,229.84,3.9145]
[1759713656489,7.96,229.96,229.8,60.9018]
[1759713656490,7.96,229.96,229.85,3.72200713]
[1759713656688,7.96,229.96,229.86,3.72200713]
[1759713656991,7.96,229.96,229.87,3.72200713]
[1759713657193,60.8574,229.98,229.77,60.912]
[1759713657393,7.96,229.93,229.8,60.9033]
[1759713657600,7.96,229.93,229.81,3.72553712]
[1759713657798,7.96,229.93,229.8,60.9033]
[1759713657799,7.96,229.93,229.82,3.72553712]
[1759713657991,7.96,229.93,229.76,144.8932]
[1759713657992,11.8731,229.93,229.83,3.72553712]
[1759713658193,7.96,229.93,229.84,3.72553712]
[1759713658395,7.96,229.93,229.85,3.72553712]
[1759713658596,7.96,229.92,229.78,3.9155]
[1759713658796,117.7,229.92,229.79,3.73047438]
[1759713658994,117.7,229.92,229.8,3.73047438]
[1759713659302,7.96,229.91,229.81,3.73047438]
[1759713659594,7.96,229.91,229.82,3.73047438]
[1759713659803,7.96,229.91,229.83,3.73047438]
[1759713660002,7.96,229.91,229.84,3.73047438]
[1759713660200,3.0249728,229.98,229.85,3.73047438]
[1759713660401,7.96,229.97,229.86,3.73047438]
[1759713660591,7.96,229.97,229.87,3.73047438]
[1759713660896,7.96,229.97,229.88,3.73047438]
[1759713661097,7.96,229.97,229.89,3.73047438]
[1759713661400,7.96,229.97,229.9,3.73047438]
[1759713661598,7.96,229.97,229.91,3.73047438]
[1759713661792,7.96,229.94,229.92,3.73047438]
[1759713662000,7.96,229.94,229.93,3.73047438]
[1759713663202,3.9133,229.92,229.8,3.9151]
[1759713663396,3.9133,229.92,229.79,3.65]
[1759713663791,3.9133,229.92,229.82,3.9149]
[1759713663996,7.96,229.94,229.82,3.9149]
[1759713664198,7.96,229.94,229.81,3.65]
[1759713665205,7.96,229.94,229.84,3.9145]
[1759713665405,3.913,229.93,229.81,3.65]
[1759713666292,3.913,229.93,229.81,7.5649]
[1759713666499,7.96,229.94,229.81,3.65]
[1759713666691,3.9126,229.96,229.81,3.65]
[1759713667703,3.9126,229.96,229.84,3.65]
[1759713668403,10.9849728,229.99,229.84,3.65]
[1759713668404,11.872,229.99,229.84,3.65]
[1759713668605,7.96,229.99,229.84,3.65]
[1759713670799,7.96,229.99,229.86,3.65]
[1759713672203,7.96,229.99,229.87,3.914]
[1759713672409,7.96,229.99,229.86,3.65]
[1759713672711,7.96,229.99,229.9,3.65]
[1759713675309,7.96,229.99,229.87,3.6145055]
[1759713676312,7.96,229.99,229.88,3.6145055]
[1759713677306,7.96,229.99,229.9,3.6145055]
[1759713677611,7.96,229.99,229.91,3.6145055]
[1759713678211,7.96,229.99,229.92,3.6145055]
[1759713678610,7.28,230.06,229.94,3.6145055]
[1759713679104,3.9113,230.03,229.94,3.6145055]
[1759713679302,7.28,230.02,229.93,3.6145055]
[1759713681201,7.28,230.02,229.94,3.6145055]
[1759713681609,7.28,230.02,229.93,3.6145055]
[1759713681813,7.28,230.02,229.92,3.6145055]
[1759713682013,7.28,230.02,229.93,3.6145055]
[1759713682214,3.0249728,230.04,229.93,3.6145055]
[1759713682215,3.9119,230.0,229.93,3.6145055]
[1759713682404,7.28,229.99,229.93,3.6145055]
[1759713683015,10.3049728,229.99,229.92,3.6145055]
[1759713683216,10.3049728,229.99,229.9,3.6145055]
[1759713683422,7.28,230.05,229.9,3.6145055]
[1759713683613,137.8118,230.08,229.88,3.9139]
[1759713683614,7.28,230.0,229.91,3.6145055]
[1759713684407,3.9123,229.98,229.91,3.6145055]
[1759713684610,7.28,229.97,229.91,3.6145055]
[1759713686219,7.28,230.0,229.92,3.6145055]
[1759713687216,7.28,230.0,229.91,3.6145055]
[1759713688119,3.9122,229.98,229.91,3.6145055]
[1759713688314,7.28,229.97,229.91,3.6145055]
[1759713688918,3.0249728,230.01,229.9,3.6145055]
[1759713688919,7.28,229.95,229.9,3.6145055]